bitfinex/quotes_BTCUSD_20260311
["timestamp","ask_amount","ask_price","bid_price","bid_amount"]
[1773259458953,1e-08,70546.0,70541.0,0.10547611]
[1773259459680,1e-08,70546.0,70541.0,0.00074108]
[1773259460033,1e-08,70546.0,70542.0,0.07087975]
[1773259460334,1e-08,70546.0,70543.0,0.00075098]
[1773259461100,0.00022001,70549.0,70543.0,0.00075098]
[1773259461391,0.00144,70548.0,70545.0,0.00144]
[1773259461779,0.00144,70547.0,70545.0,0.00144]
[1773259462184,0.00022001,70549.0,70546.0,0.07087574]
[1773259462391,0.00022001,70563.0,70546.0,0.07087574]
[1773259462592,0.00022001,70563.0,70561.0,0.04955027]
[1773259462817,0.05597384,70562.0,70561.0,0.04955027]
[1773259463020,0.05453384,70562.0,70561.0,0.00086962]
[1773259463319,0.05597384,70562.0,70561.0,0.00086962]
[1773259464092,0.0013035,70562.0,70561.0,0.00086962]
[1773259464473,0.00022001,70566.0,70557.0,0.07086465]
[1773259464474,0.05453384,70565.0,70557.0,0.07086465]
[1773259464804,0.05475385,70561.0,70557.0,0.07086465]
[1773259466301,0.00022001,70561.0,70551.0,0.07087024]
[1773259466925,0.00014173,70558.0,70551.0,0.07087024]
[1773259468848,0.00014173,70558.0,70551.0,0.07287024]
[1773259469049,0.00014173,70558.0,70551.0,0.07187024]
[1773259469460,0.00014173,70558.0,70551.0,0.07087024]
[1773259469672,0.00022001,70561.0,70551.0,0.07087024]
[1773259470458,0.00022001,70566.0,70551.0,0.07087024]
[1773259470678,0.00144,70565.0,70556.0,0.04224523]
[1773259471077,0.00022001,70566.0,70556.0,0.04224523]
[1773259471278,0.00144,70565.0,70556.0,0.04224523]
[1773259471652,0.00144,70565.0,70551.0,0.07087024]
[1773259471887,0.00144,70565.0,70556.0,0.001]
[1773259472307,0.00144,70565.0,70551.0,0.07087024]
[1773259472599,0.00144,70565.0,70557.0,0.07086469]
[1773259474300,0.00144,70564.0,70557.0,0.07086469]
[1773259474615,0.00155131,70564.0,70557.0,0.07086469]
[1773259475254,0.00155131,70564.0,70551.0,0.07087071]
[1773259475466,0.04044619,70563.0,70542.0,0.07231889]
[1773259475608,0.04044619,70563.0,70542.0,0.07087889]
[1773259475826,0.04044619,70563.0,70557.0,0.002]
[1773259476323,0.04044619,70563.0,70557.0,0.001]
[1773259476531,0.04044619,70563.0,70544.0,0.07087775]
[1773259476736,0.04044619,70563.0,70545.0,0.00043721]
[1773259477870,0.04044902,70562.0,70545.0,0.00043721]
[1773259478733,0.04044902,70562.0,70552.0,0.07086971]
[1773259479327,0.04044902,70562.0,70552.0,0.07078971]
[1773259483075,0.07086067,70561.0,70539.0,0.07108186]
[1773259483383,0.04044902,70558.0,70543.0,0.07107775]
[1773259483566,0.04044902,70556.0,70544.0,0.07087775]
[1773259484163,0.04044902,70556.0,70543.0,0.07107775]
[1773259484367,0.04044902,70556.0,70539.0,0.0002]
[1773259484571,0.04044902,70556.0,70537.0,0.07088437]
[1773259484750,0.07086669,70555.0,70537.0,0.07088437]
[1773259484947,0.04045274,70554.0,70537.0,0.07088437]
[1773259488479,0.04045274,70554.0,70537.0,0.07108437]
[1773259488714,0.04045274,70554.0,70540.0,0.04221651]
[1773259488882,0.04045858,70556.0,70537.0,0.07108437]
[1773259489509,0.04045858,70556.0,70537.0,0.06207747]
[1773259491423,0.00144,70555.0,70541.0,0.07088076]
[1773259494711,0.04189537,70555.0,70541.0,0.07188076]
[1773259495027,0.04189537,70555.0,70541.0,0.07088076]
[1773259496275,0.04189537,70555.0,70541.0,0.07108076]
[1773259497317,0.04189537,70555.0,70541.0,0.0002]
[1773259497523,0.04221651,70551.0,70533.0,0.0002]
[1773259497883,0.04045651,70548.0,70532.0,0.07088887]
[1773259498046,0.04045651,70546.0,70531.0,0.0002]
[1773259498258,0.04045651,70546.0,70531.0,0.07109077]
[1773259501508,0.00144,70545.0,70531.0,0.07109077]
[1773259501647,0.04046034,70544.0,70531.0,0.07109077]
[1773259501853,0.00144,70545.0,70531.0,0.07209077]
[1773259502047,0.00144,70545.0,70531.0,0.07109077]
[1773259502252,0.00144,70544.0,70531.0,0.07109077]
[1773259502462,0.04046034,70548.0,70531.0,0.07109077]
[1773259502463,0.00144,70543.0,70531.0,0.07109077]
[1773259502659,0.14130897,70552.0,70532.0,0.01945524]
[1773259502978,0.04046034,70555.0,70532.0,0.01945524]
[1773259502979,0.00144,70551.0,70538.0,0.04221651]
[1773259504561,0.00144,70551.0,70539.0,0.07088277]
[1773259505998,0.04045606,70550.0,70539.0,0.07088277]
[1773259506310,0.04045606,70550.0,70539.0,0.03928291]
[1773259506829,0.07087272,70549.0,70532.0,0.07088907]
[1773259507005,0.07087272,70549.0,70527.0,0.07123919]
[1773259507006,0.04045606,70548.0,70529.0,0.07109233]
[1773259507207,0.04045606,70548.0,70528.0,0.07089307]
[1773259508682,0.04046194,70546.0,70528.0,0.07089307]
[1773259509472,0.04046194,70544.0,70527.0,0.0003452]
[1773259509607,0.04046194,70544.0,70527.0,0.07123997]
[1773259509809,0.04046194,70544.0,70527.0,0.0003452]
[1773259510705,0.07087875,70543.0,70527.0,0.0003452]
[1773259510828,0.0404633,70542.0,70527.0,0.07123991]
[1773259511972,0.0404633,70542.0,70527.0,0.07135158]
[1773259512148,0.0404633,70542.0,70527.0,0.07155158]
[1773259512734,0.04046345,70540.0,70527.0,0.07155158]
[1773259512930,0.07088076,70541.0,70527.0,0.07155158]
[1773259512931,0.04046345,70538.0,70527.0,0.00065687]
[1773259513153,0.04046345,70538.0,70527.0,0.07155166]
[1773259514330,0.04046345,70538.0,70526.0,0.0002]
[1773259514725,0.04046345,70538.0,70512.0,0.0004742]
[1773259514726,0.07088478,70537.0,70512.0,0.0004742]
[1773259515023,0.04046343,70535.0,70515.0,0.07090672]
[1773259516689,0.04146343,70535.0,70515.0,0.07090672]
[1773259516890,0.07088779,70534.0,70516.0,0.07110583]
[1773259517092,0.00144,70533.0,70516.0,0.07110583]
[1773259517278,0.00144,70532.0,70517.0,0.0120256]
[1773259517992,0.00144,70531.0,70517.0,0.0120256]
[1773259518833,0.00144,70531.0,70518.0,0.07090388]
[1773259519045,0.00144,70531.0,70519.0,0.0120256]
[1773259521378,0.00144,70531.0,70520.0,0.07090187]
[1773259521552,0.00144,70530.0,70521.0,0.0120256]
[1773259521879,0.00144,70529.0,70521.0,0.0120256]
[1773259522173,0.00144,70528.0,70521.0,0.01210973]
[1773259523344,0.00144,70527.0,70521.0,0.01210973]
[1773259523540,0.00144,70527.0,70523.0,0.0120256]
[1773259524589,0.00144,70527.0,70522.0,0.07089986]
[1773259524784,0.00144,70527.0,70517.0,0.07110448]
[1773259526923,0.00144,70527.0,70518.0,0.0120256]
[1773259527677,0.00144,70527.0,70519.0,0.07090287]
[1773259530600,0.00144,70527.0,70520.0,0.0120256]
[1773259531276,0.00144,70527.0,70519.0,0.07090287]
[1773259534400,0.00144,70526.0,70521.0,0.0120256]
[1773259534671,0.00022001,70545.0,70519.0,0.07090287]
[1773259534672,0.07109723,70545.0,70527.0,0.0120256]
[1773259534969,0.00144,70539.0,70527.0,0.0120256]
[1773259536148,0.00022001,70532.0,70527.0,0.0120256]
[1773259536374,0.00144,70531.0,70529.0,0.0120256]
[1773259538091,0.00022001,70545.0,70529.0,0.0120256]
[1773259538305,0.00144,70542.0,70532.0,0.0114553]
[1773259538459,0.00144,70542.0,70532.0,0.01153972]
[1773259538658,0.00022001,70547.0,70532.0,0.01153972]
[1773259538884,0.00144,70546.0,70532.0,0.01153972]
[1773259540616,0.00144,70546.0,70531.0,0.07089081]
[1773259540617,0.07087674,70545.0,70520.0,0.08090176]
[1773259540763,0.00011076,70545.0,70522.0,0.00572492]
[1773259540958,0.00011076,70545.0,70530.0,0.04223877]
[1773259541198,0.00144,70544.0,70531.0,0.00572492]
[1773259541397,0.00022001,70547.0,70531.0,0.00572492]
[1773259541398,0.00144,70543.0,70531.0,0.00572492]
[1773259541601,0.00144,70543.0,70532.0,0.00629795]
[1773259541809,0.00022001,70547.0,70532.0,0.00629795]
[1773259542002,0.00022001,70553.0,70539.0,0.00629795]
[1773259542203,0.00144,70547.0,70539.0,0.00629795]
[1773259543830,0.00144,70547.0,70540.0,0.07088176]
[1773259544036,0.00022001,70546.0,70540.0,0.07088176]
[1773259544979,0.00022001,70546.0,70539.0,0.07717997]
[1773259545160,0.00022001,70546.0,70539.0,0.07718029]
[1773259547736,0.00022001,70546.0,70538.0,0.07088377]
[1773259549287,0.00022001,70546.0,70538.0,0.07188377]
[1773259550573,0.00022001,70546.0,70538.0,0.07088377]
[1773259551924,0.00022001,70546.0,70539.0,0.0002]
[1773259552706,0.00022001,70546.0,70540.0,0.07088176]
[1773259555509,0.00144,70545.0,70540.0,0.07088176]
[1773259555743,0.000208,70559.0,70541.0,0.00499999]
[1773259556056,0.00144,70558.0,70550.0,0.00499999]
[1773259557457,0.000208,70559.0,70550.0,0.00499999]
[1773259557782,0.00144,70557.0,70552.0,0.00499999]
[1773259559462,0.00144,70557.0,70552.0,0.07586912]
[1773259559666,0.00144,70557.0,70553.0,0.00499999]
[1773259560067,0.00166001,70557.0,70552.0,0.07086913]
[1773259560465,0.00166001,70557.0,70550.0,0.07086971]
[1773259560690,0.00166001,70557.0,70549.0,0.00499999]
[1773259561302,0.00166001,70557.0,70552.0,0.001]
[1773259561512,0.00166001,70557.0,70546.0,0.07087373]
[1773259561513,0.00166001,70557.0,70541.0,0.07588075]
[1773259562649,0.00166001,70557.0,70542.0,0.00499999]
[1773259563912,0.00166001,70557.0,70541.0,0.00499999]
[1773259564109,0.00166001,70557.0,70541.0,0.00599999]
[1773259564332,0.00166001,70557.0,70541.0,0.00499999]
[1773259565174,0.00144,70556.0,70541.0,0.00499999]
[1773259565344,0.00144,70555.0,70541.0,0.00599999]
[1773259565546,0.00022001,70560.0,70541.0,0.00499999]
[1773259565754,0.0710706,70572.0,70556.0,0.00499999]
[1773259565755,0.00022001,70569.0,70556.0,0.00499999]
[1773259565957,0.00144,70568.0,70558.0,0.00499999]
[1773259566167,0.00144,70567.0,70558.0,0.00499999]
[1773259566401,0.00144,70567.0,70556.0,0.07086469]
[1773259567803,0.00166001,70567.0,70553.0,0.07086569]
[1773259568036,0.00166001,70567.0,70556.0,0.001]
[1773259568326,0.00022001,70567.0,70557.0,0.00499999]
[1773259568504,0.00144,70566.0,70557.0,0.00499999]
[1773259568700,0.00144,70565.0,70557.0,0.00499999]
[1773259569466,0.00144,70564.0,70557.0,0.00499999]
[1773259570362,0.00144,70564.0,70558.0,0.07086368]
[1773259571159,0.00144,70564.0,70557.0,0.07086368]
[1773259572259,0.00144,70564.0,70558.0,0.001]
[1773259572459,0.00144,70564.0,70557.0,0.07086368]
[1773259574448,0.00144,70564.0,70551.0,0.07087066]
[1773259574672,0.07229767,70564.0,70551.0,0.07087066]
[1773259575641,0.07229767,70564.0,70545.0,0.00499999]
[1773259575846,0.07229767,70564.0,70544.0,0.07087674]
[1773259576307,0.07251768,70564.0,70544.0,0.07087674]
[1773259578102,0.07351768,70564.0,70544.0,0.07087674]
[1773259578249,0.07451768,70564.0,70544.0,0.07087674]
[1773259578650,0.07351768,70564.0,70544.0,0.07087674]
[1773259578900,0.07451768,70564.0,70544.0,0.07087674]
[1773259580373,0.07451768,70564.0,70544.0,0.07587673]
[1773259580577,0.07351768,70564.0,70544.0,0.07587673]
[1773259581183,0.21499703,70564.0,70544.0,0.07587673]
[1773259581535,0.21399703,70564.0,70544.0,0.07587673]
[1773259581926,0.14147935,70563.0,70544.0,0.07587673]
[1773259582338,0.21399703,70564.0,70544.0,0.07587673]
[1773259583176,0.21399703,70564.0,70544.0,0.08238971]
[1773259583375,0.14147935,70563.0,70544.0,0.08238971]
[1773259583758,0.14147935,70563.0,70544.0,0.08258971]
[1773259584122,0.14147935,70562.0,70544.0,0.08258971]
[1773259584327,0.14147935,70563.0,70544.0,0.07758972]
[1773259584522,0.14147935,70562.0,70545.0,0.00499999]
[1773259584772,0.14147935,70561.0,70547.0,0.00499999]
[1773259584972,0.14147935,70563.0,70550.0,0.00499999]
[1773259585171,0.14147935,70562.0,70552.0,0.00499999]
[1773259585373,0.14147935,70561.0,70552.0,0.00499999]
[1773259585583,0.14147935,70562.0,70552.0,0.00499999]
[1773259585739,0.14147935,70561.0,70552.0,0.00499999]
[1773259585948,0.14291935,70560.0,70553.0,0.00651213]
[1773259586180,0.14147935,70559.0,70551.0,0.00460767]
[1773259586341,0.14147935,70558.0,70552.0,0.00651194]
[1773259586544,0.00144,70557.0,70553.0,0.00460767]
[1773259586743,0.14147935,70556.0,70553.0,0.00460767]
[1773259586941,0.00144,70555.0,70554.0,0.0708677]
[1773259589411,0.00144,70555.0,70549.0,0.07548039]
[1773259589603,0.00144,70555.0,70549.0,0.07759326]
[1773259590106,0.00144,70555.0,70547.0,0.07087272]
[1773259590309,0.00144,70555.0,70542.0,0.0002]
[1773259590310,0.00484182,70554.0,70542.0,0.0002]
[1773259590455,0.00484182,70554.0,70543.0,0.07087873]
[1773259591308,0.0708687,70553.0,70544.0,0.07107768]
[1773259591671,0.00355298,70555.0,70544.0,0.07207768]
[1773259592012,0.00144,70555.0,70544.0,0.07207768]
[1773259592214,0.07230674,70555.0,70544.0,0.07207768]
[1773259592895,0.07230674,70555.0,70544.0,0.07107768]
[1773259593709,0.07230674,70555.0,70544.0,0.07207768]
[1773259594169,0.07230674,70555.0,70544.0,0.07107768]
[1773259594851,0.07086007,70562.0,70545.0,0.00460767]
[1773259595171,0.00144,70561.0,70545.0,0.00460767]
[1773259595369,0.07086007,70562.0,70545.0,0.00460767]
[1773259595570,0.00144,70560.0,70545.0,0.00460767]
[1773259595969,0.00144,70559.0,70546.0,0.07548341]
[1773259596545,0.00484182,70558.0,70546.0,0.07087574]
[1773259597256,0.00144,70559.0,70547.0,0.00460767]
[1773259598267,0.07108391,70558.0,70548.0,0.0754814]
[1773259600066,0.00022001,70558.0,70548.0,0.0754814]
[1773259600890,0.00022001,70558.0,70548.0,0.07533053]
[1773259601568,0.00022001,70558.0,70548.0,0.07517963]
[1773259602171,0.07108402,70558.0,70548.0,0.07517963]
[1773259602378,0.00022001,70558.0,70548.0,0.07517963]
[1773259603006,0.00022001,70558.0,70547.0,0.07087373]
[1773259604403,0.00022001,70558.0,70547.0,0.07072285]
[1773259604602,0.00022001,70558.0,70547.0,0.07057198]
[1773259605530,0.07108375,70558.0,70547.0,0.07057198]
[1773259607397,0.00022001,70567.0,70549.0,0.00490216]
[1773259607681,0.07088669,70574.0,70551.0,0.00490216]
[1773259607832,0.00144,70568.0,70552.0,0.00109761]
[1773259608024,0.00144,70568.0,70552.0,0.00490216]
[1773259608224,0.07296474,70570.0,70554.0,0.00490216]
[1773259608425,0.00144,70568.0,70554.0,0.00490216]
[1773259609649,0.07085464,70567.0,70555.0,0.07576885]
[1773259609850,0.07085464,70567.0,70555.0,0.07071589]
[1773259609851,0.07296762,70567.0,70555.0,0.07071589]
[1773259610052,0.00466933,70566.0,70555.0,0.07071589]
[1773259610290,0.00466933,70566.0,70554.0,0.001]
[1773259610492,0.00466933,70564.0,70549.0,0.001]
[1773259610693,0.00466933,70562.0,70549.0,0.0708724]
[1773259610870,0.00466933,70560.0,70549.0,0.0708724]
[1773259612498,0.07553201,70559.0,70545.0,0.07087674]
[1773259612653,0.07086268,70559.0,70546.0,0.00488471]
[1773259613670,0.07086268,70559.0,70549.0,0.001]
[1773259613867,0.00144,70558.0,70549.0,0.001]
[1773259614118,0.00144,70558.0,70550.0,0.00488471]
[1773259614625,0.00144,70558.0,70548.0,0.00488471]
[1773259615170,0.07230457,70558.0,70548.0,0.00488471]
[1773259615803,0.00144,70557.0,70548.0,0.00488471]
[1773259616181,0.00144,70556.0,70548.0,0.00488471]
[1773259616583,0.00144,70556.0,70549.0,0.07087272]
[1773259616791,0.00144,70556.0,70550.0,0.00488471]
[1773259617212,0.07086115,70561.0,70550.0,0.00488471]
[1773259617528,0.00144,70555.0,70550.0,0.00488471]
[1773259617732,0.07086115,70561.0,70550.0,0.00488471]
[1773259617980,0.00144,70560.0,70550.0,0.00488471]
[1773259618158,0.00144,70560.0,70550.0,0.00588471]
[1773259618311,0.00144,70560.0,70550.0,0.00488471]
[1773259618814,0.00144,70560.0,70551.0,0.07087071]
[1773259619152,0.00022001,70558.0,70551.0,0.07087071]
[1773259620717,0.00144,70560.0,70552.0,0.00488471]
[1773259621053,0.00144,70560.0,70553.0,0.0708687]
[1773259621459,0.07085818,70564.0,70553.0,0.0708687]
[1773259621635,0.00144,70561.0,70553.0,0.0708687]
[1773259621952,0.07574506,70566.0,70553.0,0.0708687]
[1773259622264,0.00144,70562.0,70553.0,0.07575341]
[1773259622437,0.00144,70562.0,70554.0,0.00488471]
[1773259622640,0.00144,70561.0,70554.0,0.00488471]
[1773259623021,0.07107573,70566.0,70555.0,0.07086669]
[1773259623226,0.00144,70565.0,70555.0,0.07086669]
[1773259623652,0.00144,70564.0,70555.0,0.07086669]
[1773259624271,0.00144,70564.0,70555.0,0.0757514]
[1773259624654,0.00022001,70566.0,70555.0,0.0757514]
[1773259624857,0.00144,70565.0,70555.0,0.0757514]
[1773259625231,0.07229762,70565.0,70555.0,0.0757514]
[1773259626672,0.00466933,70564.0,70552.0,0.0002]
[1773259626851,0.00211298,70563.0,70555.0,0.001]
[1773259627044,0.00466933,70564.0,70545.0,0.07087674]
[1773259627246,0.07086067,70561.0,70545.0,0.07087674]
[1773259627450,0.00466933,70560.0,70545.0,0.07087674]
[1773259627851,0.00466933,70558.0,70545.0,0.07087674]
[1773259629803,0.00466933,70556.0,70544.0,0.07107696]
[1773259631089,0.07086469,70557.0,70542.0,0.07107934]
[1773259631608,0.07086669,70555.0,70542.0,0.07107934]
[1773259633929,0.07086669,70555.0,70542.0,0.07596405]
[1773259634125,0.07086669,70555.0,70544.0,0.0002]
[1773259635654,0.07086669,70555.0,70544.0,0.00508471]
[1773259636327,0.07086669,70555.0,70545.0,0.07087674]
[1773259637073,0.07086669,70555.0,70544.0,0.07107693]
[1773259637379,0.00466933,70554.0,70544.0,0.07107693]
[1773259637672,0.00144,70553.0,70544.0,0.07107693]
[1773259638434,0.07086971,70552.0,70544.0,0.07107693]
[1773259638634,0.07230878,70553.0,70544.0,0.07107693]
[1773259641891,0.07086794,70554.0,70544.0,0.07107693]
[1773259642098,0.00144,70552.0,70544.0,0.07107693]
[1773259642510,0.07086944,70553.0,70544.0,0.07107693]
[1773259642708,0.00144,70552.0,70544.0,0.07107693]
[1773259643112,0.00144,70551.0,70544.0,0.07107693]
[1773259643494,0.07086944,70553.0,70544.0,0.07207693]
[1773259643698,0.00144,70552.0,70544.0,0.07107693]
[1773259643891,0.00144,70552.0,70545.0,0.00454654]
[1773259644191,0.00144,70551.0,70545.0,0.00454654]
[1773259644400,0.07086683,70555.0,70545.0,0.00454654]
[1773259644599,0.01062866,70602.0,70545.0,0.00454654]
[1773259644600,0.00144,70554.0,70546.0,0.00454654]
[1773259644824,0.0710808,70561.0,70546.0,0.00454654]
[1773259645128,0.00144,70560.0,70546.0,0.00454654]
[1773259645291,0.0710808,70561.0,70546.0,0.00454654]
[1773259645633,0.00144,70560.0,70546.0,0.00454654]
[1773259645865,0.00453156,70559.0,70545.0,0.00454654]
[1773259646447,0.07086368,70558.0,70546.0,0.07087574]
[1773259646810,0.07086368,70558.0,70546.0,0.07542228]
[1773259647507,0.07086368,70558.0,70546.0,0.07592278]
[1773259650315,0.07086368,70558.0,70546.0,0.07137624]
[1773259650593,0.00664454,70557.0,70546.0,0.07137624]
[1773259651365,0.00453156,70556.0,70546.0,0.07137624]
[1773259651565,0.00211298,70555.0,70546.0,0.07137624]
[1773259651743,0.00597156,70554.0,70545.0,0.07087574]
[1773259651949,0.00597156,70554.0,70546.0,0.07087574]
[1773259652604,0.07683929,70554.0,70546.0,0.07087574]
[1773259652778,0.07230773,70554.0,70546.0,0.07087574]
[1773259654202,0.07252774,70554.0,70546.0,0.07087574]
[1773259654789,0.07252774,70554.0,70545.0,0.07087574]
[1773259654989,0.00211298,70553.0,70545.0,0.07087574]
[1773259656036,0.00453156,70552.0,70542.0,0.0002]
[1773259656232,0.00453156,70552.0,70542.0,0.07107961]
[1773259656567,0.00453156,70552.0,70542.0,0.0002]
[1773259657053,0.00453156,70550.0,70542.0,0.0002]
[1773259657428,0.00453156,70550.0,70542.0,0.07107949]
[1773259659190,0.07087272,70549.0,70542.0,0.07107949]
[1773259659365,0.00144,70548.0,70542.0,0.07107949]
[1773259662929,0.00144,70547.0,70542.0,0.07107949]
[1773259663131,0.00144,70546.0,70542.0,0.07107949]
[1773259663333,0.07087187,70550.0,70542.0,0.07107949]
[1773259663556,0.00144,70549.0,70542.0,0.07107949]
[1773259664087,0.00150327,70549.0,70542.0,0.07107949]
[1773259664987,0.00211298,70550.0,70542.0,0.07107949]
[1773259665157,0.00144,70549.0,70542.0,0.07107949]
[1773259665498,0.00211298,70550.0,70542.0,0.07107949]
[1773259665702,0.00144,70549.0,70542.0,0.07107949]
[1773259665906,0.00211298,70550.0,70542.0,0.07107949]
[1773259666142,0.00144,70549.0,70542.0,0.0002]
[1773259666340,0.00667665,70550.0,70542.0,0.0002]
[1773259666473,0.00144,70548.0,70542.0,0.0002]
[1773259666685,0.00144,70547.0,70542.0,0.0002]
[1773259666888,0.00144,70546.0,70542.0,0.0002]
[1773259668338,0.07231643,70546.0,70542.0,0.0002]
[1773259668754,0.00144,70546.0,70542.0,0.07580433]
[1773259669064,0.07087377,70548.0,70542.0,0.07580433]
[1773259669371,0.00144,70547.0,70542.0,0.00492492]
[1773259670884,0.07231553,70547.0,70542.0,0.00492492]
[1773259671963,0.07231553,70547.0,70542.0,0.0002]
[1773259672178,0.00211298,70546.0,70539.0,0.07108248]
[1773259672375,0.07231553,70547.0,70539.0,0.07114575]
[1773259672945,0.07231553,70547.0,70537.0,0.0002]
[1773259673149,0.00499223,70543.0,70526.0,0.0001283]
[1773259673321,0.00499223,70543.0,70526.0,0.07102335]
[1773259674029,0.07087975,70542.0,70526.0,0.07102335]
[1773259674329,0.00499223,70540.0,70526.0,0.07102335]
[1773259675288,0.00499223,70540.0,70532.0,0.0002]
[1773259676452,0.07088277,70539.0,70532.0,0.0002]
[1773259677605,0.07232277,70541.0,70533.0,0.00471762]
[1773259677606,0.00144,70538.0,70533.0,0.00471762]
[1773259678574,0.00144,70538.0,70535.0,0.00471762]
[1773259679673,0.21228872,70545.0,70535.0,0.00471762]
[1773259679884,0.00022001,70546.0,70535.0,0.00471762]
[1773259680081,0.00144,70544.0,70535.0,0.00471762]
[1773259680481,0.00144,70544.0,70536.0,0.07088578]
[1773259680687,0.00144,70549.0,70537.0,0.00471762]
[1773259680869,0.00144,70553.0,70537.0,0.00479143]
[1773259681068,0.14138434,70560.0,70537.0,0.00151381]
[1773259681405,0.00144,70560.0,70551.0,0.00471762]
[1773259682380,0.00022001,70554.0,70551.0,0.00471762]
[1773259682579,0.00144,70560.0,70552.0,0.07558733]
[1773259682781,0.00144,70560.0,70553.0,0.00471762]
[1773259683411,0.07230175,70560.0,70552.0,0.07086971]
[1773259683614,0.07230175,70560.0,70552.0,0.07558733]
[1773259683823,0.07230175,70560.0,70552.0,0.07086971]
[1773259684942,0.07230175,70560.0,70552.0,0.07079179]
[1773259685125,0.00144,70560.0,70552.0,0.07079179]
[1773259685734,0.07230176,70560.0,70551.0,0.07086971]
[1773259685915,0.07729399,70560.0,70548.0,0.07087327]
[1773259686920,0.07729399,70560.0,70544.0,0.07087775]
[1773259687236,0.07729399,70560.0,70545.0,0.00471762]
[1773259687629,0.07729399,70560.0,70548.0,0.001]
[1773259687835,0.07729399,70560.0,70545.0,0.00471762]
[1773259689579,0.07729399,70560.0,70546.0,0.07087574]
[1773259690388,0.07230176,70560.0,70546.0,0.07087574]
[1773259690707,0.07230176,70560.0,70547.0,0.00471762]
[1773259691277,0.00144,70560.0,70547.0,0.00471762]
[1773259691478,0.00144,70559.0,70547.0,0.00471762]
[1773259691790,0.00144,70558.0,70547.0,0.00471762]
[1773259691993,0.00144,70557.0,70549.0,0.00471762]
[1773259692150,0.00144,70556.0,70549.0,0.00471762]
[1773259692355,0.00144,70555.0,70549.0,0.00471762]
[1773259692603,0.00144,70554.0,70549.0,0.00471762]
[1773259692799,0.07108098,70561.0,70549.0,0.00471762]
[1773259693096,0.00144,70560.0,70549.0,0.00471762]
[1773259693252,0.00144,70559.0,70549.0,0.00471762]
[1773259693453,0.00144,70558.0,70549.0,0.00471762]
[1773259693895,0.00144,70558.0,70550.0,0.07087172]
[1773259694096,0.00144,70558.0,70551.0,0.00471762]
[1773259695073,0.00144,70558.0,70551.0,0.00371762]
[1773259695623,0.00144,70557.0,70551.0,0.00371762]
[1773259695838,0.06111155,70561.0,70551.0,0.00371762]
[1773259696052,0.07230227,70560.0,70552.0,0.07086971]
[1773259696425,0.00144,70560.0,70552.0,0.07086971]
[1773259697054,0.00144,70560.0,70552.0,0.06986971]
[1773259698866,0.07086068,70561.0,70552.0,0.06986971]
[1773259699068,0.00144,70559.0,70553.0,0.00471762]
[1773259699247,0.00144,70559.0,70553.0,0.00460072]
[1773259699449,0.00022001,70566.0,70553.0,0.00460072]
[1773259699620,0.00144,70565.0,70553.0,0.00460072]
[1773259700027,0.07085866,70563.0,70554.0,0.0708677]
[1773259700229,0.07229778,70564.0,70554.0,0.0708677]
[1773259701569,0.07229778,70564.0,70554.0,0.07539313]
[1773259702200,0.07229778,70564.0,70554.0,0.07516808]
[1773259702408,0.00144,70563.0,70554.0,0.07516808]
[1773259702748,0.00144,70563.0,70554.0,0.07416808]
[1773259702950,0.00022001,70560.0,70554.0,0.07416808]
[1773259703150,0.00144,70563.0,70552.0,0.07006971]
[1773259703393,0.00144,70563.0,70554.0,0.0708677]
[1773259705151,0.00144,70563.0,70553.0,0.0708677]
[1773259705353,0.07107636,70566.0,70554.0,0.00452543]
[1773259705549,0.00144,70565.0,70554.0,0.00452543]
[1773259705980,0.00144,70564.0,70554.0,0.00452543]
[1773259706513,0.00144,70563.0,70554.0,0.00552543]
[1773259707011,0.00144,70564.0,70556.0,0.00452543]
[1773259707371,0.00144,70564.0,70557.0,0.07086469]
[1773259707707,0.00144,70564.0,70558.0,0.00452543]
[1773259708463,0.0001497,70571.0,70558.0,0.00352543]
[1773259708669,0.00144,70570.0,70558.0,0.00352543]
[1773259709971,0.00144,70570.0,70559.0,0.07086268]
[1773259710464,0.00022001,70564.0,70559.0,0.07086268]
[1773259710611,0.0001497,70571.0,70559.0,0.07086268]
[1773259710808,0.00144,70570.0,70559.0,0.07086268]
[1773259711261,0.00155163,70570.0,70559.0,0.07086268]
[1773259711965,0.00480813,70569.0,70559.0,0.07086268]
[1773259712176,0.00354479,70569.0,70559.0,0.07086268]
[1773259712869,0.00354479,70569.0,70559.0,0.07186268]
[1773259713170,0.00336388,70569.0,70559.0,0.07186268]
[1773259713683,0.00336388,70569.0,70559.0,0.07086268]
[1773259714095,0.00336388,70569.0,70557.0,0.07086469]
[1773259715129,0.00022001,70572.0,70560.0,0.04221698]
[1773259715268,0.00144,70568.0,70562.0,0.00490354]
[1773259715672,0.00144,70568.0,70560.0,0.00011163]
[1773259715879,0.00480813,70567.0,70560.0,0.00011163]
[1773259717486,0.00144,70568.0,70560.0,0.00011163]
[1773259718251,0.00144,70568.0,70560.0,0.0709733]
[1773259724076,0.00614297,70568.0,70560.0,0.0709733]
[1773259726664,0.00144,70568.0,70560.0,0.0709733]
[1773259727065,0.00144,70568.0,70560.0,0.0699733]
[1773259727812,0.00470297,70567.0,70560.0,0.0699733]
[1773259731608,0.00470297,70567.0,70552.0,0.00476829]
[1773259731990,0.00470297,70567.0,70543.0,0.00489768]
[1773259731991,0.00471444,70566.0,70543.0,0.00489768]
[1773259733425,0.00521654,70566.0,70543.0,0.00489768]
[1773259734462,0.07085665,70565.0,70544.0,0.07087775]
[1773259734620,0.00471444,70564.0,70545.0,0.00489768]
[1773259735566,0.00521654,70564.0,70545.0,0.00489768]
[1773259736294,0.00521654,70564.0,70545.0,0.00589768]
[1773259736939,0.00471444,70562.0,70546.0,0.06987574]
[1773259737162,0.00471444,70560.0,70546.0,0.07087574]
[1773259737366,0.00505794,70560.0,70546.0,0.07087574]
[1773259738472,0.00471444,70558.0,70545.0,0.001]
[1773259738701,0.00471444,70558.0,70543.0,0.07107849]
[1773259738909,0.00471444,70556.0,70543.0,0.07107849]
[1773259739109,0.00144,70555.0,70543.0,0.07107849]
[1773259739311,0.00471444,70554.0,70543.0,0.07107849]
[1773259740478,0.00505794,70554.0,70543.0,0.07107849]
[1773259740865,0.0708687,70553.0,70543.0,0.07107849]
[1773259741209,0.00505794,70554.0,70543.0,0.07107849]
[1773259741210,0.075926,70554.0,70543.0,0.07107849]
[1773259741423,0.00471444,70553.0,70543.0,0.0002]
[1773259742661,0.00471444,70553.0,70540.0,0.07088133]
[1773259743063,0.07558415,70552.0,70540.0,0.07088133]
[1773259743426,0.07576905,70552.0,70540.0,0.07088133]
[1773259745036,0.07176905,70552.0,70540.0,0.07088133]
[1773259745253,0.00144,70553.0,70541.0,0.00489768]
[1773259745764,0.00144,70553.0,70541.0,0.00389768]
[1773259746498,0.00144,70553.0,70541.0,0.00489768]
[1773259747203,0.00144,70553.0,70542.0,0.07577743]